[Event "-chT Youth Countries 2019"]
[Site "Wuerzburg"]
[Date "2019.10.04"]
[Round "4.8"]
[White "Reich, Elisabeth"]
[Black "Lorenz, Veronika"]
[Result "0-1"]
[ECO "C44"]
[WhiteElo "1199"]
[BlackElo "1237"]
[Annotator "NA"]
[PlyCount "136"]
[EventDate "2019.10.02"]
[EventType "team-tourn"]
[EventRounds "7"]
[EventCountry "GER"]
[SourceTitle "playchess.com"]
[Source "ChessBase"]
[SourceQuality "1"]
[WhiteTeam "Bayern 2"]
[BlackTeam "Berlin"]
[TimeControl "40/5400+30:1800+30"]

1. e4 {[%emt 0:00:00]} e5 {[%emt 0:00:00]} 2. Nf3 {[%emt 0:00:00]} Nc6 {[%emt 0:00:00]} 3. d4 {[%emt 0:00:00]} exd4 {[%emt 0:00:00]} 4. c3 {[%emt 0:00:13]} dxc3 {[%emt 0:01:59]} 5. Bc4 {[%emt 0:00:33]} Bc5 {[%emt 0:07:39]} 6. Bxf7+ {[%emt 0:01:02]} Kxf7 {[%emt 0:02:05]} 7. Qd5+ {[%emt 0:00:39]} Kf8 {[%emt 0:08:29]} 8. Qxc5+ {[%emt 0:00:42]} d6 {[%emt 0:00:27]} 9. Qxc3 {[%emt 0:00:08]} Qf6 {[%emt 0:01:57]} 10. Qxf6+ {[%emt 0:00:38]} Nxf6 {[%emt 0:00:10]} 11. Nc3 {[%emt 0:00:07]} Be6 {[%emt 0:06:09]} 12. O-O {[%emt 0:00:52]} h6 {[%emt 0:01:24]} 13. Re1 {[%emt 0:00:09]} Rd8 {[%emt 0:17:27]} 14. e5 {[%emt 0:00:50]} dxe5 {[%emt 0:13:23]} 15. Nxe5 {[%emt 0:00:48]} Nxe5 {[%emt 0:01:18]} 16. Rxe5 {[%emt 0:00:23]} Kf7 {[%emt 0:03:09]} 17. Bf4 {[%emt 0:00:42]} c6 {[%emt 0:03:37]} 18. Rae1 {[%emt 0:00:42]} Rhe8 {[%emt 0:01:01]} 19. a3 {[%emt 0:00:21]} g5 {[%emt 0:02:16]} 20. Bg3 Rd2 {[%emt 0:01:41]} 21. R5e2 {[%emt 0:02:34]} Bd7 {[%emt 0:09:10]} 22. f3 {[%emt 0:00:59]} Rdxe2 {[%emt 0:03:14]} 23. Rxe2 {[%emt 0:00:33]} Nd5 {[%emt 0:01:31]} 24. Rxe8 {[%emt 0:00:10]} Kxe8 {[%emt 0:00:15]} 25. Nxd5 {[%emt 0:00:10]} cxd5 {[%emt 0:00:11]} 26. Bf2 {[%emt 0:00:10]} a6 {[%emt 0:00:28]} 27. h4 {[%emt 0:00:15]} g4 {[%emt 0:00:48]} 28. Be3 {[%emt 0:00:22]} h5 {[%emt 0:00:21]} 29. Kf2 {[%emt 0:00:06]} Ke7 {[%emt 0:02:57]} 30. Bg5+ {[%emt 0:00:21]} Kd6 {[%emt 0:00:47]} 31. Ke3 {[%emt 0:00:41]} Kc5 {[%emt 0:02:10]} 32. Be7+ {[%emt 0:00:17]} Kc4 {[%emt 0:00:27]} 33. Bf6 {[%emt 0:00:11]} a5 {[%emt 0:07:27]} 34. Bc3 {[%emt 0:00:44]} a4 {[%emt 0:00:51]} 35. Bd4 {[%emt 0:00:12]} gxf3 {[%emt 0:01:56]} 36. gxf3 {[%emt 0:00:13]} Bh3 {[%emt 0:00:17]} 37. f4 {[%emt 0:00:27]} Bf5 {[%emt 0:00:11]} 38. Be5 {[%emt 0:00:50]} Be4 {[%emt 0:01:15]} 39. Bd4 {[%emt 0:00:27]} b5 {[%emt 0:00:16]} 40. Bf6 {[%emt 0:00:35]} Kc5 {[%emt 0:00:45]} 41. Bd4+ {[%emt 0:30:11]} Kd6 {[%emt 0:00:37]} 42. Kd2 {[%emt 0:00:00]} Ke6 {[%emt 0:02:04]} 43. Kc3 {[%emt 0:00:00]} Kf5 {[%emt 0:01:11]} 44. Kb4 {[%emt 0:00:00]} Bd3 {[%emt 0:00:35]} 45. Kc5 {[%emt 0:00:00]} Bc4 {[%emt 0:00:21]} 46. Kd6 {[%emt 0:00:00]} Kxf4 {[%emt 0:00:27]} 47. Ke6 {[%emt 0:00:00]} Ke4 {[%emt 0:00:40]} 48. Bc3 {[%emt 0:00:00]} d4+ {[%emt 0:00:11]} 49. Kf6 {[%emt 0:00:00]} dxc3 {[%emt 0:00:33]} 50. bxc3 {[%emt 0:00:00]} Be2 {[%emt 0:00:27]} 51. Ke6 {[%emt 0:00:00]} Kd3 {[%emt 0:00:25]} 52. Kd5 {[%emt 0:00:00]} Kxc3 {[%emt 0:00:22]} 53. Kc5 {[%emt 0:00:00]} Kb3 {[%emt 0:00:10]} 54. Kb6 {[%emt 0:00:00]} Kxa3 {[%emt 0:00:11]} 55. Ka5 {[%emt 0:00:00]} b4 {[%emt 0:00:08]} 56. Kb6 {[%emt 0:00:00]} b3 {[%emt 0:00:12]} 57. Kc5 {[%emt 0:00:00]} b2 {[%emt 0:00:08]} 58. Kd4 {[%emt 0:00:00]} b1=Q {[%emt 0:00:20]} 59. Ke3 {[%emt 0:00:00]} Qd3+ {[%emt 0:00:32]} 60. Kf4 {[%emt 0:00:00]} Qd5 {[%emt 0:00:34]} 61. Ke3 {[%emt 0:00:00]} Qc5+ {[%emt 0:00:57]} 62. Kxe2 {[%emt 0:00:00]} Qc3 {[%emt 0:00:28]} 63. Kf2 {[%emt 0:00:00]} Kb4 {[%emt 0:00:19]} 64. Ke2 {[%emt 0:00:00]} a3 {[%emt 0:00:11]} 65. Kf2 {[%emt 0:00:00]} a2 {[%emt 0:00:10]} 66. Ke2 {[%emt 0:00:00]} a1=Q {[%emt 0:00:11]} 67. Kf2 {[%emt 0:00:00]} Qab2+ {[%emt 0:00:06]} 68. Kf1 {[%emt 0:00:00]} Qcc1# {[%emt 0:00:03] normal} 0-1

[Event "-chT Youth Countries 2019"]
[Site "Wuerzburg"]
[Date "2019.10.04"]
[Round "4.8"]
[White "Richter, Johanna"]
[Black "Prinzen, Siri Marleen"]
[Result "0-1"]
[ECO "D00"]
[WhiteElo "942"]
[BlackElo "1520"]
[Annotator "NA"]
[PlyCount "104"]
[EventDate "2019.10.02"]
[EventType "team-tourn"]
[EventRounds "7"]
[EventCountry "GER"]
[SourceTitle "playchess.com"]
[Source "ChessBase"]
[SourceQuality "1"]
[WhiteTeam "Rheinland-Pfalz"]
[BlackTeam "Bayern 1"]
[TimeControl "40/5400+30:1800+30"]

1. d4 {[%emt 0:00:00]} d5 {[%emt 0:00:00]} 2. Bf4 {[%emt 0:00:00]} Nf6 {[%emt 0:00:16]} 3. e3 {[%emt 0:00:00]} Bf5 {[%emt 0:01:08]} 4. Bd3 {[%emt 0:00:43]} Bxd3 {[%emt 0:01:26]} 5. Qxd3 {[%emt 0:00:22]} e6 {[%emt 0:00:27]} 6. Nf3 {[%emt 0:00:57]} Nbd7 {[%emt 0:00:56]} 7. Nbd2 {[%emt 0:01:03]} c5 {[%emt 0:05:23]} 8. c3 {[%emt 0:04:11]} Be7 {[%emt 0:01:52]} 9. Qc2 {[%emt 0:05:35]} O-O {[%emt 0:02:02]} 10. O-O-O {[%emt 0:01:28]} Rc8 {[%emt 0:03:01]} 11. Rdf1 {[%emt 0:05:18]} cxd4 {[%emt 0:01:08]} 12. exd4 {[%emt 0:00:49]} b5 {[%emt 0:01:06]} 13. Kd1 {[%emt 0:13:31]} b4 {[%emt 0:02:11]} 14. Ke2 {[%emt 0:03:59]} bxc3 {[%emt 0:01:36]} 15. bxc3 {[%emt 0:03:49]} Qa5 {[%emt 0:02:08]} 16. Rc1 {[%emt 0:01:57]} Ba3 {[%emt 0:01:02]} 17. Nb3 {[%emt 0:01:00]} Qa6+ {[%emt 0:00:34]} 18. Qd3 {[%emt 0:01:02]} Qxd3+ {[%emt 0:00:42]} 19. Kxd3 {[%emt 0:00:15]} Bxc1 {[%emt 0:00:10]} 20. Rxc1 {[%emt 0:00:07]} Ne4 {[%emt 0:00:49]} 21. Bg3 {[%emt 0:01:22]} Nb6 {[%emt 0:02:21]} 22. Nc5 {[%emt 0:03:14]} Nxg3 {[%emt 0:02:06]} 23. hxg3 {[%emt 0:00:47]} Rfd8 {[%emt 0:02:10]} 24. Nb7 {[%emt 0:06:47]} Rd7 {[%emt 0:02:04]} 25. Nc5 {[%emt 0:00:43]} Re7 {[%emt 0:00:17]} 26. Ne5 {[%emt 0:00:38]} f6 {[%emt 0:00:30]} 27. Ng4 {[%emt 0:01:16]} h5 {[%emt 0:01:40]} 28. Ne3 {[%emt 0:00:53]} g6 {[%emt 0:01:01]} 29. Nb3 {[%emt 0:02:50]} e5 {[%emt 0:01:13]} 30. f4 {[%emt 0:01:06]} exd4 {[%emt 0:02:08]} 31. Nxd4 {[%emt 0:00:42]} Rd7 {[%emt 0:06:08]} 32. f5 {[%emt 0:02:11]} Nc4 {[%emt 0:03:17]} 33. fxg6 {[%emt 0:01:08]} Nxe3 {[%emt 0:00:26]} 34. Kxe3 {[%emt 0:00:30]} Rg7 {[%emt 0:04:02]} 35. Nf5 {[%emt 0:00:21]} Re8+ {[%emt 0:00:05]} 36. Kd4 {[%emt 0:01:14]} Rxg6 {[%emt 0:00:11]} 37. Rf1 {[%emt 0:02:35]} Rg5 {[%emt 0:00:48]} 38. Nd6 {[%emt 0:03:03]} Re6 {[%emt 0:00:29]} 39. Nb5 {[%emt 0:02:55]} Re4+ {[%emt 0:01:14]} 40. Kc5 {[%emt 0:00:35]} d4+ {[%emt 0:00:51]} 41. Kc4 {[%emt 0:31:37]} dxc3+ {[%emt 0:30:22]} 42. Kd3 {[%emt 0:01:43]} Reg4 {[%emt 0:00:33]} 43. Nxc3 {[%emt 0:00:26]} Rxg3+ {[%emt 0:00:08]} 44. Kc2 {[%emt 0:00:37]} Rxg2+ {[%emt 0:00:08]} 45. Kb3 {[%emt 0:00:10]} f5 {[%emt 0:01:06]} 46. Rd1 {[%emt 0:00:49]} h4 {[%emt 0:00:20]} 47. Rd8+ {[%emt 0:00:05]} Kh7 {[%emt 0:00:11]} 48. Rd7+ {[%emt 0:00:24]} Rg7 {[%emt 0:00:07]} 49. Rd5 {[%emt 0:00:40]} Rf7 {[%emt 0:00:56]} 50. Rd3 {[%emt 0:01:58]} Rg3 {[%emt 0:00:25]} 51. Rd1 {[%emt 0:00:30]} h3 {[%emt 0:00:28]} 52. Rh1 {[%emt 0:00:18]} Kg6 {[%emt 0:00:11] normal} 0-1

[Event "-chT Youth Countries 2019"]
[Site "Wuerzburg"]
[Date "2019.10.04"]
[Round "5.1"]
[White "Muckle, Julius"]
[Black "Philipp, Mathias"]
[Result "1-0"]
[ECO "D07"]
[WhiteElo "2398"]
[BlackElo "2063"]
[Annotator "NA"]
[PlyCount "83"]
[EventDate "2019.10.02"]
[EventType "team-tourn"]
[EventRounds "7"]
[EventCountry "GER"]
[SourceTitle "playchess.com"]
[Source "ChessBase"]
[SourceQuality "1"]
[WhiteTeam "Rheinland-Pfalz"]
[BlackTeam "Thüringen"]
[TimeControl "40/5400+30:1800+30"]

1. d4 {[%emt 0:00:00]} d5 {[%emt 0:00:00]} 2. c4 {[%emt 0:00:00]} Nc6 {[%emt 0:00:00]} 3. Nc3 {[%emt 0:00:13]} Nf6 {[%emt 0:00:00]} 4. Nf3 {[%emt 0:01:39]} dxc4 {[%emt 0:00:00]} 5. e3 {[%emt 0:00:26]} Bg4 {[%emt 0:01:37]} 6. Bxc4 {[%emt 0:00:12]} e6 {[%emt 0:00:03]} 7. O-O {[%emt 0:01:22]} Bb4 {[%emt 0:04:37]} 8. h3 {[%emt 0:01:59]} Bh5 {[%emt 0:04:29]} 9. Be2 {[%emt 0:03:51]} O-O {[%emt 0:02:14]} 10. Bd2 {[%emt 0:00:18]} Qe7 {[%emt 0:15:59]} 11. a3 {[%emt 0:03:17]} Bxc3 {[%emt 0:00:35]} 12. Bxc3 {[%emt 0:00:02]} Ne4 {[%emt 0:00:12]} 13. Rc1 {[%emt 0:00:30]} Nxc3 {[%emt 0:06:40]} 14. Rxc3 {[%emt 0:00:19]} Qd6 {[%emt 0:00:58]} 15. Rc5 {[%emt 0:01:18]} f5 {[%emt 0:04:17]} 16. Qc2 {[%emt 0:01:45]} Rac8 {[%emt 0:05:10]} 17. Rc1 {[%emt 0:00:22]} Be8 {[%emt 0:04:45]} 18. b4 {[%emt 0:06:08]} a6 {[%emt 0:03:41]} 19. Ne5 {[%emt 0:05:35]} f4 {[%emt 0:04:26]} 20. Bf3 {[%emt 0:02:39]} fxe3 {[%emt 0:00:16]} 21. fxe3 {[%emt 0:00:01]} Nxe5 {[%emt 0:04:56]} 22. Bxb7 {[%emt 0:03:25]} Bg6 {[%emt 0:13:05]} 23. dxe5 {[%emt 0:00:08]} Qb6 {[%emt 0:00:05]} 24. Be4 {[%emt 0:00:15]} Bxe4 {[%emt 0:01:33]} 25. Qxe4 {[%emt 0:00:03]} Rfe8 {[%emt 0:00:36]} 26. Qc6 {[%emt 0:01:22]} Qa7 {[%emt 0:00:12]} 27. Rd1 {[%emt 0:03:02]} Re7 {[%emt 0:02:31]} 28. Rd7 {[%emt 0:01:49]} Kf8 {[%emt 0:01:55]} 29. Qd6 {[%emt 0:01:19]} cxd6 {[%emt 0:03:00]} 30. Rxc8+ {[%emt 0:00:08]} Kf7 {[%emt 0:00:03]} 31. Rxa7 {[%emt 0:00:05]} Rxa7 {[%emt 0:00:02]} 32. exd6 {[%emt 0:00:05]} Kf6 {[%emt 0:01:40]} 33. Rc7 {[%emt 0:00:59]} Ra8 {[%emt 0:00:04]} 34. d7 {[%emt 0:00:07]} Rd8 {[%emt 0:00:10]} 35. Kf2 {[%emt 0:00:24]} Ke5 {[%emt 0:01:36]} 36. Ra7 {[%emt 0:00:30]} Kd5 {[%emt 0:01:02]} 37. Ke2 {[%emt 0:00:42]} Kc4 {[%emt 0:00:37]} 38. Rxa6 {[%emt 0:00:17]} Rxd7 {[%emt 0:00:04]} 39. Rxe6 {[%emt 0:00:04]} Ra7 {[%emt 0:00:03]} 40. Rc6+ {[%emt 0:00:15]} Kb3 {[%emt 0:00:46]} 41. b5 {[%emt 0:30:08]} Kxa3 {[%emt 0:30:07]} 42. Ra6+ {[%emt 0:00:05] normal} 1-0

[Event "-chT Youth Countries 2019"]
[Site "Wuerzburg"]
[Date "2019.10.04"]
[Round "5.1"]
[White "Svane, Frederik"]
[Black "Roseneck, Jonas"]
[Result "1/2-1/2"]
[ECO "B22"]
[WhiteElo "2360"]
[BlackElo "2402"]
[Annotator "NA"]
[PlyCount "51"]
[EventDate "2019.10.02"]
[EventType "team-tourn"]
[EventRounds "7"]
[EventCountry "GER"]
[SourceTitle "playchess.com"]
[Source "ChessBase"]
[SourceQuality "1"]
[WhiteTeam "Schleswig-Holstein"]
[BlackTeam "Sachsen-Anhalt"]
[TimeControl "40/5400+30:1800+30"]

1. e4 {[%emt 0:00:00]} c5 {[%emt 0:00:00]} 2. c3 {[%emt 0:00:00]} Nf6 {[%emt 0:00:00]} 3. e5 {[%emt 0:00:00]} Nd5 {[%emt 0:00:00]} 4. Nf3 {[%emt 0:00:00]} e6 {[%emt 0:01:40]} 5. d4 {[%emt 0:02:29]} cxd4 {[%emt 0:00:09]} 6. cxd4 {[%emt 0:00:06]} d6 {[%emt 0:00:03]} 7. Bc4 {[%emt 0:00:35]} Be7 {[%emt 0:00:05]} 8. O-O {[%emt 0:00:12]} O-O {[%emt 0:00:01]} 9. Qe2 {[%emt 0:00:13]} b6 {[%emt 0:00:02]} 10. Nc3 {[%emt 0:02:59]} Nxc3 {[%emt 0:10:54]} 11. bxc3 {[%emt 0:00:36]} Bb7 {[%emt 0:10:07]} 12. Bf4 {[%emt 0:11:50]} Nc6 {[%emt 0:18:28]} 13. Bd3 {[%emt 0:10:22]} dxe5 {[%emt 0:06:37]} 14. dxe5 {[%emt 0:00:55]} Na5 {[%emt 0:00:20]} 15. Rad1 {[%emt 0:11:18]} Qc7 {[%emt 0:01:58]} 16. Ng5 {[%emt 0:03:05]} h6 {[%emt 0:11:27]} 17. Ne4 {[%emt 0:21:19]} Rfd8 {[%emt 0:02:33]} 18. Qg4 {[%emt 0:02:13]} Bxe4 {[%emt 0:02:49]} 19. Bxe4 {[%emt 0:00:42]} Rxd1 {[%emt 0:00:08]} 20. Rxd1 {[%emt 0:01:15]} Rd8 {[%emt 0:00:31]} 21. Rxd8+ {[%emt 0:12:09]} Bxd8 {[%emt 0:00:01]} 22. Bxh6 {[%emt 0:03:18]} Qxe5 {[%emt 0:00:44]} 23. Bd2 {[%emt 0:01:32]} Bc7 {[%emt 0:14:50]} 24. g3 {[%emt 0:04:03]} f5 {[%emt 0:07:26]} 25. Qg6 {[%emt 0:00:08]} Qxe4 {[%emt 0:03:06]} 26. Qe8+ {[%emt 0:00:08] normal} 1/2-1/2

[Event "-chT Youth Countries 2019"]
[Site "Wuerzburg"]
[Date "2019.10.04"]
[Round "5.1"]
[White "Färber, David"]
[Black "Fromm, Marius"]
[Result "1/2-1/2"]
[ECO "D02"]
[WhiteElo "2332"]
[BlackElo "2124"]
[Annotator "NA"]
[PlyCount "43"]
[EventDate "2019.10.02"]
[EventType "team-tourn"]
[EventRounds "7"]
[EventCountry "GER"]
[SourceTitle "playchess.com"]
[Source "ChessBase"]
[SourceQuality "1"]
[WhiteTeam "Baden 2"]
[BlackTeam "Mecklenburg-Vorpommern"]
[TimeControl "40/5400+30:1800+30"]

1. d4 {[%emt 0:00:00]} Nf6 {[%emt 0:00:00]} 2. Nf3 {[%emt 0:00:00]} d5 {[%emt 0:00:10]} 3. Bf4 {[%emt 0:00:00]} c5 {[%emt 0:00:15]} 4. e3 {[%emt 0:00:00]} Nc6 {[%emt 0:00:26]} 5. Nbd2 {[%emt 0:00:01]} e6 {[%emt 0:07:34]} 6. c3 {[%emt 0:00:21]} Bd6 {[%emt 0:02:06]} 7. Bg3 {[%emt 0:00:07]} O-O {[%emt 0:00:10]} 8. Bd3 {[%emt 0:00:04]} b6 {[%emt 0:00:47]} 9. Qe2 {[%emt 0:00:06]} Bb7 {[%emt 0:00:33]} 10. Rd1 {[%emt 0:00:08]} Ne7 {[%emt 0:08:23]} 11. e4 {[%emt 0:04:57]} c4 {[%emt 0:14:36]} 12. Bc2 {[%emt 0:08:57]} dxe4 {[%emt 0:00:26]} 13. Ng5 {[%emt 0:09:54]} b5 {[%emt 0:05:44]} 14. Ndxe4 {[%emt 0:01:35]} Nxe4 {[%emt 0:00:50]} 15. Nxe4 {[%emt 0:00:45]} Bxe4 {[%emt 0:02:10]} 16. Qxe4 {[%emt 0:02:22]} g6 {[%emt 0:00:35]} 17. O-O {[%emt 0:03:07]} Nd5 {[%emt 0:03:02]} 18. Rc1 {[%emt 0:12:22]} Qd7 {[%emt 0:09:13]} 19. Qe2 {[%emt 0:00:56]} Rfc8 {[%emt 0:00:47]} 20. Be4 {[%emt 0:00:21]} Rab8 {[%emt 0:00:56]} 21. Rfe1 {[%emt 0:03:14]} Bxg3 {[%emt 0:03:52]} 22. hxg3 {[%emt 0:06:24] normal} 1/2-1/2

[Event "-chT Youth Countries 2019"]
[Site "Wuerzburg"]
[Date "2019.10.04"]
[Round "5.1"]
[White "Herbrig, Alexander"]
[Black "Vuckovic, Zarko"]
[Result "1-0"]
[ECO "A27"]
[WhiteElo "2295"]
[BlackElo "2253"]
[Annotator "NA"]
[PlyCount "100"]
[EventDate "2019.10.02"]
[EventType "team-tourn"]
[EventRounds "7"]
[EventCountry "GER"]
[SourceTitle "playchess.com"]
[Source "ChessBase"]
[SourceQuality "1"]
[WhiteTeam "Sachsen"]
[BlackTeam "Bayern 1"]
[TimeControl "40/5400+30:1800+30"]

1. c4 {[%emt 0:00:00]} e5 {[%emt 0:00:00]} 2. Nc3 {[%emt 0:00:00]} Nc6 {[%emt 0:00:22]} 3. Nf3 {[%emt 0:00:00]} f5 {[%emt 0:00:03]} 4. d4 {[%emt 0:00:53]} e4 {[%emt 0:00:08]} 5. d5 {[%emt 0:03:44]} exf3 {[%emt 0:02:18]} 6. dxc6 {[%emt 0:00:07]} dxc6 {[%emt 0:00:02]} 7. Qxd8+ {[%emt 0:00:43]} Kxd8 {[%emt 0:00:02]} 8. gxf3 {[%emt 0:03:15]} Be6 {[%emt 0:00:18]} 9. Bg5+ {[%emt 0:04:15]} Be7 {[%emt 0:03:00]} 10. O-O-O+ {[%emt 0:00:25]} Ke8 {[%emt 0:00:03]} 11. Bxe7 {[%emt 0:03:00]} Nxe7 {[%emt 0:01:28]} 12. e3 {[%emt 0:01:20]} Kf7 {[%emt 0:02:30]} 13. f4 {[%emt 0:09:38]} Rad8 {[%emt 0:02:05]} 14. Bd3 {[%emt 0:01:27]} h6 {[%emt 0:09:23]} 15. h4 {[%emt 0:03:12]} Rd6 {[%emt 0:01:15]} 16. Kc2 {[%emt 0:01:49]} Bc8 {[%emt 0:06:35]} 17. Ne2 {[%emt 0:05:32]} c5 {[%emt 0:01:32]} 18. Ng1 {[%emt 0:05:26]} Nc6 {[%emt 0:01:01]} 19. a3 {[%emt 0:01:07]} Be6 {[%emt 0:01:25]} 20. Nf3 {[%emt 0:02:32]} Kf6 {[%emt 0:03:43]} 21. Rhg1 {[%emt 0:05:14]} Bf7 {[%emt 0:05:26]} 22. Rd2 {[%emt 0:22:01]} Rhd8 {[%emt 0:09:14]} 23. Kc3 {[%emt 0:01:49]} Bh5 {[%emt 0:06:41]} 24. Ne1 {[%emt 0:01:47]} a5 {[%emt 0:01:14]} 25. f3 {[%emt 0:05:06]} Re6 {[%emt 0:01:45]} 26. e4 {[%emt 0:01:06]} Nd4 {[%emt 0:00:18]} 27. e5+ {[%emt 0:02:41]} Kf7 {[%emt 0:00:01]} 28. Bxf5 {[%emt 0:00:42]} Rb6 {[%emt 0:03:03]} 29. Bc2 {[%emt 0:00:13]} Re8 {[%emt 0:00:38]} 30. Bd1 {[%emt 0:00:29]} Rg6 {[%emt 0:07:37]} 31. Rxg6 {[%emt 0:03:29]} Kxg6 {[%emt 0:01:56]} 32. Rg2+ {[%emt 0:00:32]} Kf7 {[%emt 0:05:31]} 33. Bc2 {[%emt 0:01:05]} Ne6 {[%emt 0:01:52]} 34. Nd3 {[%emt 0:05:18]} Bg6 {[%emt 0:00:24]} 35. Nxc5 {[%emt 0:01:05]} Nxf4 {[%emt 0:00:06]} 36. Bxg6+ {[%emt 0:03:39]} Nxg6 {[%emt 0:00:02]} 37. e6+ {[%emt 0:00:32]} Kf6 {[%emt 0:00:01]} 38. Ne4+ {[%emt 0:01:37]} Kf5 {[%emt 0:00:01]} 39. h5 {[%emt 0:01:16]} Ne5 {[%emt 0:00:25]} 40. Rxg7 {[%emt 0:01:14]} Rxe6 {[%emt 0:02:59]} 41. Ng3+ {[%emt 0:02:42]} Kf6 {[%emt 0:02:52]} 42. Rxc7 {[%emt 0:02:16]} Nxf3 {[%emt 0:00:01]} 43. Kd3 {[%emt 0:04:22]} Rb6 {[%emt 0:04:12]} 44. Ne4+ {[%emt 0:02:09]} Ke5 {[%emt 0:00:58]} 45. Re7+ {[%emt 0:03:17]} Kf4 {[%emt 0:00:01]} 46. Kc3 {[%emt 0:04:14]} Ne5 {[%emt 0:01:52]} 47. Nc5 {[%emt 0:02:49]} Rc6 {[%emt 0:00:08]} 48. Ne6+ {[%emt 0:00:24]} Ke4 {[%emt 0:00:01]} 49. b3 {[%emt 0:00:33]} a4 {[%emt 0:00:10]} 50. Nd8 {[%emt 0:02:17]} Rf6 {[%emt 0:00:20] normal} 1-0

[Event "-chT Youth Countries 2019"]
[Site "Wuerzburg"]
[Date "2019.10.04"]
[Round "5.1"]
[White "Browning, Alex"]
[Black "Lagunow, Raphael"]
[Result "0-1"]
[ECO "A13"]
[WhiteElo "2291"]
[BlackElo "2438"]
[Annotator "NA"]
[PlyCount "94"]
[EventDate "2019.10.02"]
[EventType "team-tourn"]
[EventRounds "7"]
[EventCountry "GER"]
[SourceTitle "playchess.com"]
[Source "ChessBase"]
[SourceQuality "1"]
[WhiteTeam "Nordrhein-Westfalen"]
[BlackTeam "Berlin"]
[TimeControl "40/5400+30:1800+30"]

1. Nf3 {[%emt 0:00:00]} Nf6 {[%emt 0:00:00]} 2. c4 {[%emt 0:00:00]} e6 {[%emt 0:00:00]} 3. g3 {[%emt 0:00:00]} d5 {[%emt 0:00:00]} 4. Bg2 {[%emt 0:00:02]} dxc4 {[%emt 0:04:54]} 5. O-O {[%emt 0:00:39]} a6 {[%emt 0:03:10]} 6. a4 {[%emt 0:01:44]} Nc6 {[%emt 0:06:08]} 7. b3 {[%emt 0:04:42]} cxb3 {[%emt 0:04:22]} 8. d4 {[%emt 0:02:31]} a5 {[%emt 0:04:08]} 9. Qxb3 {[%emt 0:02:45]} Bb4 {[%emt 0:17:08]} 10. Rd1 {[%emt 0:01:53]} O-O {[%emt 0:00:09]} 11. Nc3 {[%emt 0:06:53]} Qe7 {[%emt 0:09:42]} 12. Bb2 {[%emt 0:09:10]} Bd7 {[%emt 0:10:09]} 13. Rac1 {[%emt 0:12:14]} Rfc8 {[%emt 0:02:08]} 14. Qc2 {[%emt 0:10:44]} Bxc3 {[%emt 0:11:10]} 15. Bxc3 {[%emt 0:00:33]} Nb4 {[%emt 0:00:14]} 16. Qb3 {[%emt 0:01:16]} Bc6 {[%emt 0:03:44]} 17. Bd2 {[%emt 0:09:06]} Bd5 {[%emt 0:01:58]} 18. Qb2 {[%emt 0:00:40]} b6 {[%emt 0:01:34]} 19. Bg5 {[%emt 0:01:50]} c5 {[%emt 0:03:30]} 20. dxc5 {[%emt 0:03:09]} bxc5 {[%emt 0:04:50]} 21. Ne5 {[%emt 0:06:56]} h6 {[%emt 0:01:38]} 22. Bxf6 {[%emt 0:00:54]} Qxf6 {[%emt 0:00:05]} 23. e4 {[%emt 0:00:44]} Bc6 {[%emt 0:01:23]} 24. Qa1 {[%emt 0:00:29]} Bxa4 {[%emt 0:01:46]} 25. Rd2 {[%emt 0:01:18]} Bb5 {[%emt 0:00:38]} 26. f4 {[%emt 0:00:25]} a4 {[%emt 0:01:34]} 27. Qa3 {[%emt 0:00:53]} Rd8 {[%emt 0:00:15]} 28. Rf2 {[%emt 0:02:00]} Rac8 {[%emt 0:00:47]} 29. Bf1 {[%emt 0:00:27]} Bxf1 {[%emt 0:01:29]} 30. Kxf1 {[%emt 0:00:07]} Rd4 {[%emt 0:00:14]} 31. Qxa4 {[%emt 0:00:51]} Rxe4 {[%emt 0:00:33]} 32. Rxc5 {[%emt 0:00:08]} Rd8 {[%emt 0:05:57]} 33. Nc6 {[%emt 0:01:34]} Nd3 {[%emt 0:00:09]} 34. Qxe4 {[%emt 0:01:52]} Nxc5 {[%emt 0:00:01]} 35. Qc4 {[%emt 0:02:28]} Rd5 {[%emt 0:01:24]} 36. Re2 {[%emt 0:01:09]} Kh7 {[%emt 0:00:31]} 37. Ne5 {[%emt 0:01:01]} Qf5 {[%emt 0:00:36]} 38. Kg2 {[%emt 0:00:47]} h5 {[%emt 0:00:29]} 39. Nf3 {[%emt 0:00:13]} Qd3 {[%emt 0:00:31]} 40. Qa2 {[%emt 0:01:22]} f6 {[%emt 0:00:14]} 41. Rb2 {[%emt 0:32:22]} Qf5 {[%emt 0:07:55]} 42. Qa8 {[%emt 0:00:00]} Qe4 {[%emt 0:03:16]} 43. Rb8 {[%emt 0:00:00]} Qe2+ {[%emt 0:03:48]} 44. Kh3 Qxf3 {[%emt 0:01:14]} 45. Rh8+ {[%emt 0:00:00]} Kg6 {[%emt 0:00:04]} 46. Qe8+ {[%emt 0:00:00]} Kf5 {[%emt 0:00:03]} 47. Rxh5+ {[%emt 0:00:00]} g5 {[%emt 0:01:22] normal} 0-1

[Event "-chT Youth Countries 2019"]
[Site "Wuerzburg"]
[Date "2019.10.04"]
[Round "5.1"]
[White "Hoffmann, Sebastian"]
[Black "Polster, Christian"]
[Result "1-0"]
[ECO "B22"]
[WhiteElo "2187"]
[BlackElo "2279"]
[Annotator "NA"]
[PlyCount "75"]
[EventDate "2019.10.02"]
[EventType "team-tourn"]
[EventRounds "7"]
[EventCountry "GER"]
[SourceTitle "playchess.com"]
[Source "ChessBase"]
[SourceQuality "1"]
[WhiteTeam "Bayern 2"]
[BlackTeam "Niedersachsen"]
[TimeControl "40/5400+30:1800+30"]

1. e4 {[%emt 0:00:00]} c5 {[%emt 0:00:00]} 2. c3 {[%emt 0:00:00]} Nf6 {[%emt 0:00:54]} 3. e5 {[%emt 0:00:00]} Nd5 {[%emt 0:00:07]} 4. d4 {[%emt 0:00:00]} cxd4 {[%emt 0:00:23]} 5. Nf3 {[%emt 0:00:00]} d6 {[%emt 0:01:53]} 6. cxd4 {[%emt 0:00:48]} Nc6 {[%emt 0:02:25]} 7. Bc4 {[%emt 0:00:25]} Nb6 {[%emt 0:04:10]} 8. Bb5 {[%emt 0:00:06]} Bd7 {[%emt 0:07:30]} 9. exd6 {[%emt 0:03:05]} e6 {[%emt 0:02:29]} 10. Nc3 {[%emt 0:04:49]} a6 {[%emt 0:03:20]} 11. Bd3 {[%emt 0:01:54]} Bxd6 {[%emt 0:03:47]} 12. a3 {[%emt 0:00:45]} Ne7 {[%emt 0:14:11]} 13. Ne4 {[%emt 0:06:24]} Bc7 {[%emt 0:04:18]} 14. Ne5 {[%emt 0:07:15]} Ng6 {[%emt 0:11:22]} 15. Nxd7 {[%emt 0:26:57]} Nxd7 {[%emt 0:08:44]} 16. O-O {[%emt 0:03:18]} O-O {[%emt 0:04:02]} 17. Bg5 {[%emt 0:02:32]} Qb8 {[%emt 0:01:40]} 18. Qh5 {[%emt 0:01:24]} Bf4 {[%emt 0:08:01]} 19. g3 {[%emt 0:02:25]} Bxg5 {[%emt 0:02:00]} 20. Qxg5 {[%emt 0:00:42]} Qd8 {[%emt 0:01:10]} 21. Rac1 {[%emt 0:05:22]} Qxg5 {[%emt 0:12:07]} 22. Nxg5 {[%emt 0:00:02]} Nf6 {[%emt 0:00:37]} 23. Rc7 {[%emt 0:01:55]} Rab8 {[%emt 0:00:33]} 24. Rfc1 {[%emt 0:02:50]} Nd5 {[%emt 0:01:50]} 25. Rd7 {[%emt 0:03:27]} Nf6 {[%emt 0:00:28]} 26. Rdc7 {[%emt 0:00:42]} Nd5 {[%emt 0:00:12]} 27. R7c5 {[%emt 0:03:25]} Rfd8 {[%emt 0:02:42]} 28. Be4 {[%emt 0:00:23]} Nf6 {[%emt 0:02:16]} 29. Bxg6 {[%emt 0:02:38]} hxg6 {[%emt 0:00:30]} 30. Rc7 {[%emt 0:01:15]} Nd7 {[%emt 0:00:40]} 31. R1c3 {[%emt 0:04:17]} Kf8 {[%emt 0:00:31]} 32. Rf3 {[%emt 0:00:37]} Nf6 {[%emt 0:00:32]} 33. Rxf7+ {[%emt 0:01:15]} Kg8 {[%emt 0:00:05]} 34. Re7 {[%emt 0:00:48]} Rxd4 {[%emt 0:00:41]} 35. Rxg7+ {[%emt 0:03:08]} Kh8 {[%emt 0:00:38]} 36. Rxg6 {[%emt 0:01:32]} Ng4 {[%emt 0:00:38]} 37. Rf7 {[%emt 0:00:44]} Ne5 {[%emt 0:00:27]} 38. Rh7# {normal} 1-0